{"text_format":"3","workbook":"xlsx","n_sheets":2,"sheets":["QBC Auftrag","QBC Auftrag SUPERMARKT"],"not_rendered":{"images":1,"defined_names":4},"read":"whole","date_system":"1900"}

{"sheet":"QBC Auftrag","index":0,"n_rows":113,"n_cols":13,"rows_kept":113,"merged":[[4,5,4,7],[4,10,4,12],[5,5,5,7],[5,10,5,12],[6,5,6,7],[6,10,6,12],[7,5,7,7],[7,10,7,12],[8,1,9,4],[8,10,8,12],[10,1,10,4],[11,1,11,4],[12,1,12,4],[13,1,13,4],[14,1,14,4],[15,1,15,4],[16,1,16,4],[17,1,17,4],[18,1,26,3],[18,4,18,7],[27,1,31,3],[32,1,32,9],[32,10,32,11],[33,1,35,3],[34,4,34,11],[35,4,35,11],[44,5,44,7],[44,10,44,12],[45,5,45,7],[45,10,45,12],[46,5,46,7],[46,10,46,12],[47,5,47,7],[47,10,47,12],[48,5,48,7],[48,10,48,12],[50,5,50,7],[51,5,51,7],[52,5,52,7],[53,5,53,7],[54,5,54,7],[56,5,56,7],[57,5,57,12],[58,5,58,12],[59,5,59,12],[60,5,60,12],[68,8,68,12],[69,8,71,12],[73,8,73,12],[74,8,76,12],[90,1,91,12],[93,1,94,12],[96,1,97,12],[99,1,99,12],[101,5,101,7],[101,10,101,12],[102,5,102,7],[102,10,102,12],[103,5,103,7],[103,10,103,12],[104,5,104,7],[105,5,105,7],[107,5,107,7],[111,8,111,12],[112,8,114,12]]}
[]
[null,"Kundenauftrag",{"$nulls":10},"QUORiON Business Control"]
[]
[null,"Angaben zum Kunden"]
[{"$nulls":4},"Name der Firma:",{"$nulls":4},"USt-IdNr.:"]
[{"$nulls":4},"Geschäftsform:",{"$nulls":4},"Telefonnummer:"]
[{"$nulls":4},"Inhaber / Geschäftsführer:",{"$nulls":4},"E-Mail Adresse:"]
[{"$nulls":4},"Ansprechpartner (falls abweichend):",{"$nulls":4},"Anwendungsbereich:","Restaurant          Handel          Sonstiges"]
[null,"Angaben zur Installation",{"$nulls":7}," wenn Handelskonfiguration:","Barcode          feste ID"]
[]
[null,"Name der Filiale",{"$nulls":3},"Kassen-","Serien-","Passwort/","BASIC","CLASSIC","PREMIUM","Filial-","Netto-"]
[{"$nulls":5},"nummer **","nummer","Kunden-ID",{"v":19.99,"d":"19.99 €"},{"v":25.99,"d":"25.99 €"},{"v":29.99,"d":"29.99 €"},"rabatt","preis, mtl."]
[{"$nulls":5},"der Filiale",null,"der Kasse",null,"(bitte Preise und Rabatt in der PL beachten)",null,"(ab 3. Filiale)"]
[]
[]
[]
[]
[]
[null,"Add-Ons, optional",null,null,"QScanner ***/*****",{"$nulls":4},"Anzahl Endgeräte:",null,{"v":3.95,"d":"3.95 €"},{"$f":"K19*L19","v":0}]
[{"$nulls":4},"Label-Factory ***",{"$nulls":4},"Anzahl Filialen:",null,{"v":1.99,"d":"1.99 €"},{"$f":"K20*L20","v":0}]
[{"$nulls":4},"Gutschein ***",{"$nulls":4},"Anzahl Filialen:",null,{"v":14.99,"d":"14.99 €"},0]
[{"$nulls":4},"Bestellung & Lieferung ***",{"$nulls":4},"Anzahl Filialen:",null,{"v":5.99,"d":"5.99 €"},0]
[{"$nulls":4},"Bestellung, Lieferung und Rechnung ***",{"$nulls":4},"Anzahl Filialen:",null,{"v":12.99,"d":"12.99 €"},0]
[{"$nulls":4},"Rechnung, Ausgabe am Kassensystem ***/****",{"$nulls":4},"Anzahl Filialen:",null,{"v":5.99,"d":"5.99 €"},0]
[{"$nulls":4},"Kampagnenmanagement - zeitgesteuerte Angebote ***",{"$nulls":4},"Anzahl Filialen:",null,{"v":4.99,"d":"4.99 €"},0]
[{"$nulls":4},"GoBD-Datenspeicher BASIC in Verbindung mit QBC ***",{"$nulls":4},"Anzahl Kassen:",null,{"v":6.99,"d":"6.99 €"},{"$f":"K26*L26","v":0}]
[{"$nulls":4},"QPlaner in Verbindung mit QBC ***",{"$nulls":4},"Anzahl Filialen:",null,{"v":14.9,"d":"14.90 €"},0]
[null,"Module",null,null,"GoBD-Datenspeicher BASIC",{"$nulls":4},"Anzahl Kassen:",null,{"v":9.99,"d":"9.99 €"},0]
[{"$nulls":4},"GoBD-Datenspeicher BERICHT",{"$nulls":4},"Anzahl:",null,{"v":19.99,"d":"19.99 €"},{"$f":"K29*L29","v":0}]
[{"$nulls":4},"Kassenbuch ***/****",{"$nulls":4},"Anzahl Filialen:",null,{"v":7.99,"d":"7.99 €"},{"$f":"K30*L30","v":0}]
[{"$nulls":4},"Kassenbuch + DATEV Schnittstelle ***/****",{"$nulls":4},"Anzahl Filialen:",null,{"v":12.99,"d":"12.99 €"},{"$f":"K31*L31","v":0}]
[{"$nulls":4},"QPlaner",{"$nulls":4},"Anzahl Filialen:",null,{"v":19.9,"d":"19.90 €"},0]
[null,"* Die QBS behält sich die Prüfung der Gesamtsumme vor und bestätigt diese mit einer Auftragsbestätigung.",{"$nulls":8},"Summe Nettopreis, mtl.*:",null,{"$f":"SUM(M14:M32)","v":0}]
[null,"Sonstiges / Service",null,null,"DATEV Einrichtungssupport ",{"$nulls":6},{"v":79.9,"d":"79.90 €"},0]
[]
[]
[null,"** Bei mehr als 5 Kassensystemen bitte ein weiteres Formular nutzen.",{"$nulls":9},"Aktivierungspauschale (f. Monatslizenz), einmalig:",{"v":69.99,"d":"69.99 €"}]
[null,"*** Mindestvoraussetzung ist ein QBC BASIC Paket.",{"$nulls":9},"Aktivierungspauschale (f. Jahreslizenz), einmalig:",0]
[null,"**** Mindestvoraussetzung ist das GOBD BASIC Modul.",{"$nulls":6},"          gewünschte Checkbox bitte aktivieren!"]
[null,"***** Mindestvoraussetzung ist das QPlaner Modul."]
[]
[null,"Kundenauftrag",{"$nulls":10},"QUORiON Business Control"]
[]
[null,"Angaben zur Abrechnung"]
[{"$nulls":4},"Rechnungsadresse (Kunde):",{"$nulls":4},"Lieferadresse (Kunde):"]
[]
[]
[]
[]
[]
[{"$nulls":4},"Adresse authorisierter Fachhändler:"]
[]
[]
[]
[]
[null,"Sonstiges"]
[{"$nulls":4},"Auftragsdurchführung gewünscht für:"]
[{"$nulls":4},"Wünsche/Anmerkungen:"]
[]
[]
[]
[null,"Hiermit bestätige ich, die"]
[{"$nulls":4},"Allgemeinen Geschäftsbedingungen (AGB) der QUORiON Business Solutions GmbH   (verfügbar unter https://delta-a.de/downloads)"]
[{"$nulls":4},"Datenschutzerklärung der QUORiON Business Solutions GmbH    (verfügbar unter https://delta-a.de/downloads)"]
[{"$nulls":4},"Legitimation des Fachhändlers zur Rechnungsabwicklung"]
[{"$nulls":4},"Legitimation des Fachhändlers zum QRSI - QUORiON Online Service"]
[null,"zur Kenntnis genommen zu haben und mich mit deren Geltung einverstanden erkläre."]
[]
[{"$nulls":3},"Ort:",{"$nulls":3},"Name des Kunden:"]
[{"$nulls":3},"Datum:",{"$nulls":3},"Unterschrift des Kunden:"]
[]
[]
[]
[{"$nulls":3},"Ort:",{"$nulls":3},"Name des Fachhändlers:"]
[{"$nulls":3},"Datum:",{"$nulls":3},"Unterschrift des Fachhändlers:"]
[]
[]
[]
[]
[null,"Kundenauftrag",{"$nulls":10},"QUORiON Business Control"]
[]
[null,"SEPA Lastschriftmandat"]
[]
[null,"QUORiON Business Solutions GmbH (nachfolgend QBS genannt)"]
[null,"Herr Mustafa Yüksel"]
[null,"Mercedesstraße 8"]
[null,"72108  Rottenburg - Ergenzingen"]
[]
[null,"Gläubiger-Identifikationsnummer:",{"$nulls":3},"DE61ZZZ00002197182"]
[]
[null,"Ich ermächtige / Wir ermächtigen die QBS hiermit Zahlungen von meinem / unserem Konto mittels Lastschrift einzuziehen. Zugleich weise ich mein / weisen wir unser Kreditinstitut an, die von QBS auf mein / unser Konto gezogenen Lastschriften einzulösen."]
[]
[]
[null,"Hinweis: Ich kann / Wir können innerhalb von acht Wochen, beginnend mit dem Belastungsdatum, die Erstattung des lelasteten Betrages verlangen. Es gelten dabei die mit meinem / unseren Kreditinstitut vereinbarten Bedingungen."]
[]
[]
[null,"Die Lastschriften werden zu den Fälligkeitszeitpunkten bewirkt, die in Ihren Rechnungen, Bescheiden und Verträgen ausdrücklich genannt sind. Dort finden Sie auch die genauen Einzugsbeträge."]
[]
[]
[null,"Angaben zum Zahlungspflichtigen"]
[]
[{"$nulls":4},"Name:",{"$nulls":4},"Bank:"]
[{"$nulls":4},"Vorname:",{"$nulls":4},"IBAN:"]
[{"$nulls":4},"Straße:",{"$nulls":4},"BIC:"]
[{"$nulls":4},"PLZ:"]
[{"$nulls":4},"Ort:"]
[]
[{"$nulls":3},"Zahlung für Mandatsreferrenz:",{"$nulls":4},"(dieses Feld wird von QBS ausgefüllt)"]
[{"$nulls":3},"Zahlungsart:",null,"Wiederkehrende sowie einmalige Zahlungen"]
[]
[]
[{"$nulls":3},"Ort:",{"$nulls":3},"Name des Kunden:"]
[{"$nulls":3},"Datum:",{"$nulls":3},"Unterschrift des Kunden:"]

{"sheet":"QBC Auftrag SUPERMARKT","index":1,"n_rows":114,"n_cols":13,"rows_kept":114,"merged":[[4,5,4,7],[4,10,4,12],[5,5,5,7],[5,10,5,12],[6,5,6,7],[6,10,6,12],[7,5,7,7],[7,10,7,12],[8,1,9,5],[8,10,8,12],[10,1,10,4],[10,8,10,10],[11,1,11,4],[11,8,11,10],[12,1,12,4],[13,1,13,4],[14,1,14,4],[15,1,15,4],[16,1,16,4],[17,1,17,4],[18,1,26,3],[18,4,18,7],[27,1,31,3],[32,1,32,9],[33,1,35,3],[34,4,34,11],[35,4,35,11],[45,5,45,7],[45,10,45,12],[46,5,46,7],[46,10,46,12],[47,5,47,7],[47,10,47,12],[48,5,48,7],[48,10,48,12],[49,5,49,7],[49,10,49,12],[51,5,51,7],[52,5,52,7],[53,5,53,7],[54,5,54,7],[55,5,55,7],[57,5,57,7],[58,5,58,12],[59,5,59,12],[60,5,60,12],[61,5,61,12],[69,8,69,12],[70,8,72,12],[74,8,74,12],[75,8,77,12],[92,1,93,12],[95,1,96,12],[98,1,99,12],[101,1,101,12],[103,5,103,7],[103,10,103,12],[104,5,104,7],[104,10,104,12],[105,5,105,7],[105,10,105,12],[106,5,106,7],[107,5,107,7],[109,5,109,7],[112,8,112,12],[113,8,115,12]]}
[]
[null,"Kundenauftrag",{"$nulls":10},"QUORiON Business Control"]
[]
[null,"Angaben zum Kunden"]
[{"$nulls":4},"Name der Firma:",{"$nulls":4},"USt-IdNr.:"]
[{"$nulls":4},"Geschäftsform:",{"$nulls":4},"Telefonnummer:"]
[{"$nulls":4},"Inhaber / Geschäftsführer:",{"$nulls":4},"E-Mail Adresse:"]
[{"$nulls":4},"Ansprechpartner (falls abweichend):",{"$nulls":4},"Anwendungsbereich:","        Handel"]
[null,"Angaben zur Installation",{"$nulls":7}," wenn Handelskonfiguration:","Barcode          feste ID"]
[]
[null,"Name der Filiale",{"$nulls":3},"Kassen-","Serien-","Passwort/","QBC SUPERMARKT******",null,null,"Filial-","Netto-"]
[{"$nulls":5},"nummer **","nummer","Kunden-ID","49,90 €",null,null,"rabatt","preis, mtl."]
[{"$nulls":5},"der Filiale",null,"der Kasse",null,"(bitte Preise und Rabatt in der PL beachten)",null,"(ab 3. Filiale)"]
[]
[]
[]
[]
[]
[null,"Add-Ons, optional",null,null,"QScanner ***/*****",{"$nulls":4},"Anzahl Endgeräte:",null,{"v":3.95,"d":"3.95 €"},{"$f":"K19*L19","v":0}]
[{"$nulls":4},"Label-Factory ***",{"$nulls":4},"Anzahl Filialen:",null,{"v":1.99,"d":"1.99 €"},{"$f":"K20*L20","v":0}]
[{"$nulls":4},"Gutschein ***",{"$nulls":4},"Anzahl Filialen:",null,{"v":14.99,"d":"14.99 €"},0]
[{"$nulls":4},"Bestellung & Lieferung ***",{"$nulls":4},"Anzahl Filialen:",null,{"v":5.99,"d":"5.99 €"},0]
[{"$nulls":4},"Bestellung, Lieferung und Rechnung ***",{"$nulls":4},"Anzahl Filialen:",null,{"v":12.99,"d":"12.99 €"},0]
[{"$nulls":4},"Rechnung, Ausgabe am Kassensystem ***/****",{"$nulls":4},"Anzahl Filialen:",null,{"v":5.99,"d":"5.99 €"},0]
[{"$nulls":4},"Kampagnenmanagement - zeitgesteuerte Angebote ***",{"$nulls":4},"Anzahl Filialen:",null,{"v":4.99,"d":"4.99 €"},0]
[{"$nulls":4},"GoBD-Datenspeicher BASIC in Verbindung mit QBC ***",{"$nulls":4},"Anzahl Kassen:",null,{"v":6.99,"d":"6.99 €"},0]
[{"$nulls":4},"QPlaner in Verbindung mit QBC ***",{"$nulls":4},"Anzahl Filialen:",null,{"v":14.9,"d":"14.90 €"},0]
[null,"Module",null,null,"GoBD-Datenspeicher BASIC",{"$nulls":4},"Anzahl Kassen:",null,{"v":9.99,"d":"9.99 €"},0]
[{"$nulls":4},"GoBD-Datenspeicher BERICHT",{"$nulls":4},"Anzahl:",null,{"v":19.99,"d":"19.99 €"},{"$f":"K29*L29","v":0}]
[{"$nulls":4},"Kassenbuch ***/****",{"$nulls":4},"Anzahl Filialen:",null,{"v":7.99,"d":"7.99 €"},{"$f":"K30*L30","v":0}]
[{"$nulls":4},"Kassenbuch + DATEV Schnittstelle ***/****",{"$nulls":4},"Anzahl Filialen:",null,{"v":12.99,"d":"12.99 €"},{"$f":"K31*L31","v":0}]
[{"$nulls":4},"QPlaner",{"$nulls":4},"Anzahl Filialen:",null,{"v":19.9,"d":"19.90 €"},0]
[null,"* Die QBS behält sich die Prüfung der Gesamtsumme vor und bestätigt diese mit einer Auftragsbestätigung.",{"$nulls":9},"Summe Nettopreis, mtl.*:",{"$f":"SUM(M14:M33)","v":0}]
[null,"Sonstiges / Service",null,null,"DATEV Einrichtungssupport ",{"$nulls":6},{"v":79.9,"d":"79.90 €"},{"$f":"K34*L34","v":0}]
[]
[]
[null,"** Bei mehr als 5 Kassensystemen bitte ein weiteres Formular nutzen.",{"$nulls":9},"Aktivierungspauschale (f. Monatslizenz), einmalig:",{"v":69.99,"d":"69.99 €"}]
[null,"*** Mindestvoraussetzung ist ein QBC BASIC Paket.",{"$nulls":9},"Aktivierungspauschale (f. Jahreslizenz), einmalig:",0]
[null,"**** Mindestvoraussetzung ist das GOBD BASIC Modul.",{"$nulls":6},"          gewünschte Checkbox bitte aktivieren!"]
[null,"***** Mindestvoraussetzung ist das QPlaner Modul."]
[null,"****** inklusive: 1 x QBC Premium, 1 x Kassenbuch, 1 x Label-Factory, 2 x GOBD Basic, 1 x QScanner, 1 x Kampagnenmanagement"]
[]
[null,"Kundenauftrag",{"$nulls":10},"QUORiON Business Control"]
[]
[null,"Angaben zur Abrechnung"]
[{"$nulls":4},"Rechnungsadresse (Kunde):",{"$nulls":4},"Lieferadresse (Kunde):"]
[]
[]
[]
[]
[]
[{"$nulls":4},"Adresse authorisierter Fachhändler:"]
[]
[]
[]
[]
[null,"Sonstiges"]
[{"$nulls":4},"Auftragsdurchführung gewünscht für:"]
[{"$nulls":4},"Wünsche/Anmerkungen:"]
[]
[]
[]
[null,"Hiermit bestätige ich, die"]
[{"$nulls":4},"Allgemeinen Geschäftsbedingungen (AGB) der QUORiON Business Solutions GmbH   (verfügbar unter https://delta-a.de/downloads)"]
[{"$nulls":4},"Datenschutzerklärung der QUORiON Business Solutions GmbH    (verfügbar unter https://delta-a.de/downloads)"]
[{"$nulls":4},"Legitimation des Fachhändlers zur Rechnungsabwicklung"]
[{"$nulls":4},"Legitimation des Fachhändlers zum QRSI - QUORiON Online Service"]
[null,"zur Kenntnis genommen zu haben und mich mit deren Geltung einverstanden erkläre."]
[]
[{"$nulls":3},"Ort:",{"$nulls":3},"Name des Kunden:"]
[{"$nulls":3},"Datum:",{"$nulls":3},"Unterschrift des Kunden:"]
[]
[]
[]
[{"$nulls":3},"Ort:",{"$nulls":3},"Name des Fachhändlers:"]
[{"$nulls":3},"Datum:",{"$nulls":3},"Unterschrift des Fachhändlers:"]
[]
[]
[]
[]
[]
[null,"Kundenauftrag",{"$nulls":10},"QUORiON Business Control"]
[]
[null,"SEPA Lastschriftmandat"]
[]
[null,"QUORiON Business Solutions GmbH (nachfolgend QBS genannt)"]
[null,"Herr Mustafa Yüksel"]
[null,"Mercedesstraße 8"]
[null,"72108  Rottenburg - Ergenzingen"]
[]
[null,"Gläubiger-Identifikationsnummer:",{"$nulls":3},"DE61ZZZ00002197182"]
[]
[null,"Ich ermächtige / Wir ermächtigen die QBS hiermit Zahlungen von meinem / unserem Konto mittels Lastschrift einzuziehen. Zugleich weise ich mein / weisen wir unser Kreditinstitut an, die von QBS auf mein / unser Konto gezogenen Lastschriften einzulösen."]
[]
[]
[null,"Hinweis: Ich kann / Wir können innerhalb von acht Wochen, beginnend mit dem Belastungsdatum, die Erstattung des lelasteten Betrages verlangen. Es gelten dabei die mit meinem / unseren Kreditinstitut vereinbarten Bedingungen."]
[]
[]
[null,"Die Lastschriften werden zu den Fälligkeitszeitpunkten bewirkt, die in Ihren Rechnungen, Bescheiden und Verträgen ausdrücklich genannt sind. Dort finden Sie auch die genauen Einzugsbeträge."]
[]
[]
[null,"Angaben zum Zahlungspflichtigen"]
[]
[{"$nulls":4},"Name:",{"$nulls":4},"Bank:"]
[{"$nulls":4},"Vorname:",{"$nulls":4},"IBAN:"]
[{"$nulls":4},"Straße:",{"$nulls":4},"BIC:"]
[{"$nulls":4},"PLZ:"]
[{"$nulls":4},"Ort:"]
[]
[{"$nulls":3},"Zahlung für Mandatsreferrenz:",{"$nulls":4},"(dieses Feld wird von QBS ausgefüllt)"]
[{"$nulls":3},"Zahlungsart:",null,"Wiederkehrende sowie einmalige Zahlungen"]
[]
[{"$nulls":3},"Ort:",{"$nulls":3},"Name des Kunden:"]
[{"$nulls":3},"Datum:",{"$nulls":3},"Unterschrift des Kunden:"]